[Event "*** Titled Tuesday Blitz"]
[Site "Chess.com"]
[Date "2019.06.04"]
[Round "9"]
[White "igorkovalenko"]
[Black "SaraciNderim"]
[Result "1-0"]
[WhiteElo "2889"]
[BlackElo "2858"]
[TimeControl "180+2"]
[EndTime "15:05:51 PDT"]
[Termination "igorkovalenko won on time"]

1. d4 {[%clk 0:03:01.9]} 1... Nf6 {[%clk 0:02:59.3]} 2. Nf3 {[%clk 0:03:02.9]}
2... g6 {[%clk 0:02:58.9]} 3. Bf4 {[%clk 0:03:03.4]} 3... Bg7 {[%clk 0:03:00.2]}
4. e3 {[%clk 0:03:04.7]} 4... d6 {[%clk 0:03:01.4]} 5. h3 {[%clk 0:03:06.2]}
5... O-O {[%clk 0:03:02.2]} 6. c3 {[%clk 0:03:07.8]} 6... c5 {[%clk 0:03:03.7]}
7. Nbd2 {[%clk 0:03:08.1]} 7... Nc6 {[%clk 0:03:05.1]} 8. dxc5 {[%clk 0:03:07]}
8... dxc5 {[%clk 0:03:04]} 9. Bb5 {[%clk 0:03:08.5]} 9... Bd7 {[%clk 0:02:54.5]}
10. O-O {[%clk 0:03:06.3]} 10... a6 {[%clk 0:02:53.6]} 11. Be2 {[%clk
0:03:07.3]} 11... b5 {[%clk 0:02:43.8]} 12. a4 {[%clk 0:03:03.1]} 12... Qb6
{[%clk 0:02:28.2]} 13. e4 {[%clk 0:02:59]} 13... Be6 {[%clk 0:02:21.5]} 14. Be3
{[%clk 0:02:54.7]} 14... Rad8 {[%clk 0:02:11.6]} 15. Qc2 {[%clk 0:02:54.6]}
15... Nd7 {[%clk 0:01:51.4]} 16. Ng5 {[%clk 0:02:54.2]} 16... Qb8 {[%clk
0:01:04.9]} 17. axb5 {[%clk 0:02:51.4]} 17... axb5 {[%clk 0:01:05.4]} 18. Nxe6
{[%clk 0:02:50.6]} 18... fxe6 {[%clk 0:01:07.3]} 19. Ra6 {[%clk 0:02:46.8]}
19... Qb7 {[%clk 0:00:45]} 20. Rfa1 {[%clk 0:02:47]} 20... c4 {[%clk 0:00:41.5]}
21. Bg4 {[%clk 0:02:42.7]} 21... Kf7 {[%clk 0:00:35.4]} 22. f4 {[%clk
0:02:32.6]} 22... Ra8 {[%clk 0:00:34.3]} 23. Rxa8 {[%clk 0:02:32.7]} 23... Rxa8
{[%clk 0:00:36.2]} 24. Rf1 {[%clk 0:02:34.1]} 24... Qa6 {[%clk 0:00:32.3]} 25.
e5 {[%clk 0:02:33]} 25... b4 {[%clk 0:00:23.3]} 26. h4 {[%clk 0:02:30.1]} 26...
bxc3 {[%clk 0:00:22.7]} 27. bxc3 {[%clk 0:02:31.6]} 27... Na5 {[%clk 0:00:23.7]}
28. Ne4 {[%clk 0:02:29.1]} 28... Bh6 {[%clk 0:00:18]} 29. h5 {[%clk 0:02:18.2]}
29... Nb3 {[%clk 0:00:18.1]} 30. hxg6+ {[%clk 0:02:01.1]} 30... hxg6 {[%clk
0:00:20]} 31. Qf2 {[%clk 0:02:02.6]} 31... Kg7 {[%clk 0:00:16.4]} 32. Qh4 {[%clk
0:02:00.9]} 32... Qc6 {[%clk 0:00:09]} 33. Qxe7+ {[%clk 0:02:00.9]} 33... Kh8
{[%clk 0:00:08.4]} 34. Nf6 {[%clk 0:01:55.2]} 34... Nxf6 {[%clk 0:00:05.4]} 35.
Qxf6+ {[%clk 0:01:55.1]} 35... Kh7 {[%clk 0:00:05.7]} 36. Bxe6 {[%clk
0:01:51.8]} 36... Ra2 {[%clk 0:00:04.6]} 37. Qf7+ {[%clk 0:01:51.2]} 37... Bg7
{[%clk 0:00:04.6]} 38. Bd5 {[%clk 0:01:47.9]} 38... Qa4 {[%clk 0:00:02.7]} 39.
Qg8+ {[%clk 0:01:46.6]} 1-0

[Event "*** Titled Tuesday Blitz"]
[Site "Chess.com"]
[Date "2019.06.04"]
[Round "9"]
[White "jefferyx"]
[Black "Dr-Bassem"]
[Result "1-0"]
[WhiteElo "2922"]
[BlackElo "2854"]
[TimeControl "180+2"]
[EndTime "15:05:58 PDT"]
[Termination "jefferyx won on time"]

1. d4 {[%clk 0:03:01.9]} 1... f5 {[%clk 0:02:57.5]} 2. Bg5 {[%clk 0:03:00]} 2...
g6 {[%clk 0:02:47.8]} 3. e3 {[%clk 0:02:59.7]} 3... d5 {[%clk 0:02:43.5]} 4. c4
{[%clk 0:03:00.3]} 4... c6 {[%clk 0:02:43.5]} 5. Nc3 {[%clk 0:03:00.6]} 5... Nf6
{[%clk 0:02:17.8]} 6. Bxf6 {[%clk 0:02:52.5]} 6... exf6 {[%clk 0:02:19.7]} 7.
cxd5 {[%clk 0:02:49.9]} 7... Bb4 {[%clk 0:02:16.8]} 8. dxc6 {[%clk 0:02:47.4]}
8... Nxc6 {[%clk 0:02:18.7]} 9. Bc4 {[%clk 0:02:47.3]} 9... a6 {[%clk
0:01:41.3]} 10. Ne2 {[%clk 0:02:39.1]} 10... b5 {[%clk 0:01:42]} 11. Bb3 {[%clk
0:02:35.3]} 11... Bb7 {[%clk 0:01:41.8]} 12. O-O {[%clk 0:02:34.8]} 12... Na5
{[%clk 0:01:43.2]} 13. Nf4 {[%clk 0:02:35.1]} 13... Rc8 {[%clk 0:01:37.1]} 14.
Ncd5 {[%clk 0:02:32.9]} 14... Bxd5 {[%clk 0:01:30.4]} 15. Bxd5 {[%clk
0:02:18.4]} 15... Bd6 {[%clk 0:01:27.8]} 16. Be6 {[%clk 0:02:15]} 16... Rc6
{[%clk 0:01:19.7]} 17. Re1 {[%clk 0:02:01.9]} 17... Bxf4 {[%clk 0:00:52.4]} 18.
exf4 {[%clk 0:02:03.8]} 18... Kf8 {[%clk 0:00:53.7]} 19. Rc1 {[%clk 0:01:45.4]}
19... Qd6 {[%clk 0:00:41.9]} 20. d5 {[%clk 0:01:15]} 20... Rxc1 {[%clk
0:00:31.5]} 21. Qxc1 {[%clk 0:01:16.9]} 21... Kg7 {[%clk 0:00:30.9]} 22. Qc3
{[%clk 0:01:15.1]} 22... Nc4 {[%clk 0:00:28]} 23. b3 {[%clk 0:01:13.4]} 23...
Nb6 {[%clk 0:00:21.4]} 24. Qc6 {[%clk 0:01:14.5]} 24... Rd8 {[%clk 0:00:17]} 25.
Qb7+ {[%clk 0:01:16]} 25... Kh8 {[%clk 0:00:16.2]} 26. h4 {[%clk 0:01:00.8]}
26... a5 {[%clk 0:00:04]} 27. h5 {[%clk 0:00:55.7]} 27... Rb8 {[%clk 0:00:03.6]}
28. Qc6 {[%clk 0:00:57]} 28... Qxf4 {[%clk 0:00:03.8]} 29. d6 {[%clk 0:00:54.6]}
29... Qd2 {[%clk 0:00:03]} 30. Rf1 {[%clk 0:00:50.7]} 30... Qd4 {[%clk
0:00:03.2]} 31. Qc7 {[%clk 0:00:51.6]} 31... Rf8 {[%clk 0:00:03.5]} 32. h6
{[%clk 0:00:52.6]} 1-0

[Event "*** Titled Tuesday Blitz"]
[Site "Chess.com"]
[Date "2019.06.04"]
[Round "9"]
[White "m3alam"]
[Black "JozefKneht"]
[Result "1-0"]
[WhiteElo "2383"]
[BlackElo "2496"]
[TimeControl "180+2"]
[EndTime "15:06:02 PDT"]
[Termination "m3alam won by resignation"]

1. d4 {[%clk 0:03:01.9]} 1... e6 {[%clk 0:02:57]} 2. Nf3 {[%clk 0:02:55.5]} 2...
Nf6 {[%clk 0:02:54.6]} 3. g3 {[%clk 0:02:53]} 3... d5 {[%clk 0:02:52.3]} 4. Bg2
{[%clk 0:02:54.9]} 4... c5 {[%clk 0:02:53.9]} 5. O-O {[%clk 0:02:54.1]} 5... Nc6
{[%clk 0:02:55.3]} 6. c4 {[%clk 0:02:43.8]} 6... dxc4 {[%clk 0:02:57.2]} 7. Ne5
{[%clk 0:02:41.8]} 7... Bd7 {[%clk 0:02:56.4]} 8. Nxc4 {[%clk 0:02:31.3]} 8...
cxd4 {[%clk 0:02:55.7]} 9. Bf4 {[%clk 0:02:28.3]} 9... Nd5 {[%clk 0:02:49.8]}
10. Nd6+ {[%clk 0:02:24.6]} 10... Bxd6 {[%clk 0:02:48.3]} 11. Bxd6 {[%clk
0:02:26.5]} 11... Nde7 {[%clk 0:02:49.2]} 12. Nd2 {[%clk 0:02:22.2]} 12... Bc8
{[%clk 0:02:20.4]} 13. Nc4 {[%clk 0:02:15.4]} 13... O-O {[%clk 0:02:19.3]} 14.
Bxc6 {[%clk 0:02:11.1]} 14... bxc6 {[%clk 0:02:20]} 15. Qxd4 {[%clk 0:02:08.3]}
15... Nf5 {[%clk 0:02:18.3]} 16. Qc5 {[%clk 0:02:07]} 16... Nxd6 {[%clk
0:02:16.7]} 17. Nxd6 {[%clk 0:02:05.8]} 17... Ba6 {[%clk 0:02:15.3]} 18. Rfe1
{[%clk 0:02:06.4]} 18... Qb6 {[%clk 0:02:12.3]} 19. Rac1 {[%clk 0:01:58.3]}
19... Qxb2 {[%clk 0:02:08.7]} 20. Rc2 {[%clk 0:01:56.2]} 20... Qb6 {[%clk
0:01:56.7]} 21. Qxb6 {[%clk 0:01:54.3]} 21... axb6 {[%clk 0:01:56.7]} 22. Rxc6
{[%clk 0:01:56.2]} 22... Rfb8 {[%clk 0:01:57]} 23. e4 {[%clk 0:01:52.9]} 23...
e5 {[%clk 0:01:44.7]} 24. Rb1 {[%clk 0:01:49.9]} 24... Bd3 {[%clk 0:01:39.5]}
25. Rb2 {[%clk 0:01:46.5]} 25... b5 {[%clk 0:01:34.4]} 26. Rc3 {[%clk
0:01:44.1]} 26... Bc4 {[%clk 0:01:31]} 27. a4 {[%clk 0:01:38.1]} 27... Rd8
{[%clk 0:01:21.7]} 28. axb5 {[%clk 0:01:32.8]} 28... Ra1+ {[%clk 0:01:19.7]} 29.
Kg2 {[%clk 0:01:23.5]} 29... Bf1+ {[%clk 0:01:21.2]} 30. Kf3 {[%clk 0:01:22.4]}
30... h5 {[%clk 0:01:15.5]} 31. Nf5 {[%clk 0:01:23.2]} 31... g6 {[%clk
0:01:11.4]} 32. Ne3 {[%clk 0:01:21.3]} 32... Bh3 {[%clk 0:01:10.3]} 33. b6
{[%clk 0:01:17.9]} 33... g5 {[%clk 0:00:57.9]} 34. b7 {[%clk 0:01:16.1]} 34...
Re1 {[%clk 0:00:50.6]} 35. g4 {[%clk 0:01:12.6]} 35... hxg4+ {[%clk 0:00:49.7]}
36. Nxg4 {[%clk 0:01:09.5]} 36... f5 {[%clk 0:00:50.6]} 37. exf5 {[%clk
0:01:05.3]} 37... e4+ {[%clk 0:00:50.8]} 38. Kg3 {[%clk 0:01:02]} 38... Rg1+
{[%clk 0:00:48.2]} 39. Kxh3 {[%clk 0:00:59]} 1-0

[Event "*** Titled Tuesday Blitz"]
[Site "Chess.com"]
[Date "2019.06.04"]
[Round "9"]
[White "FedaMaster"]
[Black "kintoho"]
[Result "1-0"]
[WhiteElo "2575"]
[BlackElo "2540"]
[TimeControl "180+2"]
[EndTime "15:06:07 PDT"]
[Termination "FedaMaster won by resignation"]

1. e4 {[%clk 0:02:56]} 1... c6 {[%clk 0:02:59.6]} 2. d4 {[%clk 0:02:56.8]} 2...
g6 {[%clk 0:02:59.9]} 3. c4 {[%clk 0:02:52.6]} 3... d5 {[%clk 0:03:00]} 4. Nc3
{[%clk 0:02:51.4]} 4... dxe4 {[%clk 0:02:59.6]} 5. Nxe4 {[%clk 0:02:52.5]} 5...
Bg7 {[%clk 0:03:00.8]} 6. Nf3 {[%clk 0:02:52.7]} 6... Bg4 {[%clk 0:03:01.1]} 7.
Be3 {[%clk 0:02:53.5]} 7... Qa5+ {[%clk 0:02:59.4]} 8. Nc3 {[%clk 0:02:53.9]}
8... Nf6 {[%clk 0:02:58.2]} 9. h3 {[%clk 0:02:49]} 9... Bf5 {[%clk 0:02:57.4]}
10. Be2 {[%clk 0:02:18.4]} 10... O-O {[%clk 0:02:57]} 11. O-O {[%clk 0:02:13.9]}
11... Qc7 {[%clk 0:02:54.6]} 12. b4 {[%clk 0:02:09.4]} 12... Rd8 {[%clk
0:02:53.6]} 13. Qb3 {[%clk 0:02:00.4]} 13... Nbd7 {[%clk 0:02:49.6]} 14. g4
{[%clk 0:01:41]} 14... Be4 {[%clk 0:02:23.9]} 15. Nd2 {[%clk 0:01:36.5]} 15...
e5 {[%clk 0:02:13.4]} 16. dxe5 {[%clk 0:01:25.9]} 16... Qxe5 {[%clk 0:02:13.6]}
17. Ncxe4 {[%clk 0:01:13.6]} 17... Nxe4 {[%clk 0:02:14.2]} 18. Nf3 {[%clk
0:01:14.6]} 18... Qe7 {[%clk 0:02:00.6]} 19. Rac1 {[%clk 0:01:11.7]} 19... Re8
{[%clk 0:01:59.6]} 20. Rfd1 {[%clk 0:01:09.3]} 20... Rad8 {[%clk 0:01:54.3]} 21.
Bf1 {[%clk 0:01:00.4]} 21... Ng3 {[%clk 0:01:51.6]} 22. Bg5 {[%clk 0:00:40.3]}
22... Bf6 {[%clk 0:01:48.7]} 23. Bxf6 {[%clk 0:00:40]} 23... Nxf6 {[%clk
0:01:45.2]} 24. fxg3 {[%clk 0:00:40.9]} 24... Rxd1 {[%clk 0:01:45.3]} 25. Rxd1
{[%clk 0:00:41.5]} 25... Ne4 {[%clk 0:01:44.9]} 26. Re1 {[%clk 0:00:40.5]} 26...
Qc7 {[%clk 0:01:45.7]} 27. Ng5 {[%clk 0:00:36.8]} 27... f5 {[%clk 0:01:33.9]}
28. c5+ {[%clk 0:00:34.5]} 28... Kg7 {[%clk 0:01:31.6]} 29. Nxe4 {[%clk
0:00:24.2]} 29... fxe4 {[%clk 0:01:30.7]} 30. Qc3+ {[%clk 0:00:23.6]} 30... Kh6
{[%clk 0:01:23.3]} 31. Qe3+ {[%clk 0:00:19.6]} 31... Kg7 {[%clk 0:01:19.3]} 32.
Qd4+ {[%clk 0:00:20.9]} 32... Kh6 {[%clk 0:01:14.7]} 33. Qd6 {[%clk 0:00:21.3]}
33... Qc8 {[%clk 0:01:06.1]} 34. g5+ {[%clk 0:00:14.2]} 34... Kg7 {[%clk
0:00:58.5]} 35. Qf6+ {[%clk 0:00:14.9]} 35... Kg8 {[%clk 0:00:58.6]} 36. Bc4+
{[%clk 0:00:16.8]} 36... Re6 {[%clk 0:01:00]} 37. Bxe6+ {[%clk 0:00:17.9]} 37...
Qxe6 {[%clk 0:01:01.3]} 38. Qxe6+ {[%clk 0:00:19.8]} 38... Kg7 {[%clk
0:01:02.7]} 39. Qf6+ {[%clk 0:00:20.4]} 39... Kg8 {[%clk 0:01:03.6]} 40. Rd1
{[%clk 0:00:21.9]} 1-0

[Event "*** Titled Tuesday Blitz"]
[Site "Chess.com"]
[Date "2019.06.04"]
[Round "9"]
[White "TST2014"]
[Black "mikhaillushenkov"]
[Result "0-1"]
[WhiteElo "2552"]
[BlackElo "2725"]
[TimeControl "180+2"]
[EndTime "15:06:11 PDT"]
[Termination "mikhaillushenkov won by resignation"]

1. d4 {[%clk 0:03:01.9]} 1... Nf6 {[%clk 0:02:59.4]} 2. c4 {[%clk 0:03:02.5]}
2... e6 {[%clk 0:02:58.9]} 3. Nf3 {[%clk 0:03:03.1]} 3... d5 {[%clk 0:02:58.1]}
4. Nc3 {[%clk 0:03:03.6]} 4... c6 {[%clk 0:02:58.9]} 5. e3 {[%clk 0:03:03.8]}
5... Nbd7 {[%clk 0:02:59.9]} 6. Qc2 {[%clk 0:03:05]} 6... Bd6 {[%clk 0:03:00.8]}
7. b3 {[%clk 0:03:06]} 7... O-O {[%clk 0:02:57.5]} 8. Bb2 {[%clk 0:03:06.4]}
8... Re8 {[%clk 0:02:53.3]} 9. Be2 {[%clk 0:03:06.6]} 9... dxc4 {[%clk
0:02:51.3]} 10. bxc4 {[%clk 0:03:06.6]} 10... e5 {[%clk 0:02:52.5]} 11. O-O
{[%clk 0:03:02.9]} 11... e4 {[%clk 0:02:39.3]} 12. Ng5 {[%clk 0:03:03.2]} 12...
Qe7 {[%clk 0:02:40.1]} 13. f3 {[%clk 0:02:35.7]} 13... exf3 {[%clk 0:02:35.4]}
14. Rxf3 {[%clk 0:02:36.1]} 14... h6 {[%clk 0:02:30.7]} 15. Nh3 {[%clk
0:02:24.6]} 15... Ng4 {[%clk 0:02:25.8]} 16. Nf4 {[%clk 0:01:35.7]} 16... Nxe3
{[%clk 0:02:24.1]} 17. Qd3 {[%clk 0:01:30.3]} 17... Nf6 {[%clk 0:02:19.7]} 18.
Re1 {[%clk 0:01:07.4]} 18... Bf5 {[%clk 0:02:04.6]} 19. Qd2 {[%clk 0:01:04.8]}
19... Nxc4 {[%clk 0:01:59.9]} 20. Bxc4 {[%clk 0:01:03.3]} 20... Qxe1+ {[%clk
0:02:00.1]} 21. Qxe1 {[%clk 0:01:05.1]} 21... Rxe1+ {[%clk 0:02:01.7]} 22. Kf2
{[%clk 0:01:06.8]} 22... Rae8 {[%clk 0:02:00.5]} 23. h3 {[%clk 0:01:02.5]} 23...
Rh1 {[%clk 0:01:52.5]} 24. Nfe2 {[%clk 0:00:58.6]} 24... Be6 {[%clk 0:01:48.6]}
25. Bd3 {[%clk 0:00:56.8]} 25... b5 {[%clk 0:01:42.2]} 26. Ng3 {[%clk
0:00:50.2]} 26... Bxg3+ {[%clk 0:01:36.9]} 27. Rxg3 {[%clk 0:00:51.3]} 27... Bc4
{[%clk 0:01:34.4]} 28. Bxc4 {[%clk 0:00:43.2]} 28... bxc4 {[%clk 0:01:36.3]} 29.
Re3 {[%clk 0:00:32.6]} 29... Rxe3 {[%clk 0:01:34.8]} 30. Kxe3 {[%clk 0:00:34.3]}
30... Nd5+ {[%clk 0:01:36.4]} 31. Nxd5 {[%clk 0:00:19.3]} 31... cxd5 {[%clk
0:01:38.3]} 32. Kf4 {[%clk 0:00:20.1]} 32... Re1 {[%clk 0:01:38]} 33. Kf3 {[%clk
0:00:20.4]} 33... Re4 {[%clk 0:01:39.9]} 34. Bc3 {[%clk 0:00:20.7]} 34... h5
{[%clk 0:01:41.1]} 35. g4 {[%clk 0:00:19.9]} 35... hxg4+ {[%clk 0:01:42.3]} 36.
hxg4 {[%clk 0:00:21.6]} 36... a6 {[%clk 0:01:43.8]} 37. a4 {[%clk 0:00:22.4]}
37... f6 {[%clk 0:01:44.3]} 38. a5 {[%clk 0:00:23.6]} 38... Kf7 {[%clk
0:01:45.7]} 39. Bb2 {[%clk 0:00:19.6]} 39... g6 {[%clk 0:01:47.6]} 40. Bc3
{[%clk 0:00:20.9]} 40... Ke6 {[%clk 0:01:49.5]} 41. Bb2 {[%clk 0:00:22]} 41...
f5 {[%clk 0:01:51.4]} 42. gxf5+ {[%clk 0:00:22.8]} 42... Kxf5 {[%clk 0:01:53.3]}
43. Bc3 {[%clk 0:00:24.5]} 43... g5 {[%clk 0:01:54.9]} 44. Bb2 {[%clk
0:00:23.7]} 44... g4+ {[%clk 0:01:56.5]} 45. Kf2 {[%clk 0:00:25.2]} 45... Re8
{[%clk 0:01:53.2]} 46. Bc3 {[%clk 0:00:23.1]} 46... Ke4 {[%clk 0:01:55.1]} 47.
Ke2 {[%clk 0:00:23.9]} 47... g3 {[%clk 0:01:55.3]} 48. Be1 {[%clk 0:00:20.1]}
48... g2 {[%clk 0:01:56.5]} 49. Bf2 {[%clk 0:00:20.9]} 49... c3 {[%clk
0:01:55.7]} 50. Kd1 {[%clk 0:00:21.8]} 50... Kd3 {[%clk 0:01:56.9]} 51. Kc1
{[%clk 0:00:19.2]} 51... c2 {[%clk 0:01:54.5]} 0-1

[Event "*** Titled Tuesday Blitz"]
[Site "Chess.com"]
[Date "2019.06.04"]
[Round "9"]
[White "MasterKroket"]
[Black "vinniethepooh"]
[Result "0-1"]
[WhiteElo "2337"]
[BlackElo "2569"]
[TimeControl "180+2"]
[EndTime "15:06:13 PDT"]
[Termination "vinniethepooh won by checkmate"]

1. d4 {[%clk 0:03:01.9]} 1... d5 {[%clk 0:02:53.6]} 2. c4 {[%clk 0:03:03.3]}
2... c6 {[%clk 0:02:53.9]} 3. Nf3 {[%clk 0:03:01.2]} 3... Nf6 {[%clk 0:02:55.2]}
4. Nc3 {[%clk 0:03:02.5]} 4... e6 {[%clk 0:02:55.5]} 5. Bg5 {[%clk 0:03:03]}
5... dxc4 {[%clk 0:02:53.6]} 6. e4 {[%clk 0:03:03.9]} 6... b5 {[%clk 0:02:53.6]}
7. e5 {[%clk 0:03:05.3]} 7... h6 {[%clk 0:02:54.6]} 8. Bh4 {[%clk 0:03:07]} 8...
g5 {[%clk 0:02:54.9]} 9. Nxg5 {[%clk 0:03:08.5]} 9... hxg5 {[%clk 0:02:56.8]}
10. Bxg5 {[%clk 0:03:09.3]} 10... Nbd7 {[%clk 0:02:58.7]} 11. g3 {[%clk
0:03:10.6]} 11... Bb7 {[%clk 0:02:58.2]} 12. Bg2 {[%clk 0:03:11.5]} 12... Qb6
{[%clk 0:02:57.3]} 13. exf6 {[%clk 0:03:12.6]} 13... c5 {[%clk 0:02:56.1]} 14.
d5 {[%clk 0:03:12.2]} 14... O-O-O {[%clk 0:02:56.9]} 15. O-O {[%clk 0:03:12.4]}
15... b4 {[%clk 0:02:57.8]} 16. Na4 {[%clk 0:03:11.9]} 16... Qa6 {[%clk
0:02:47.7]} 17. a3 {[%clk 0:03:08.5]} 17... Bxd5 {[%clk 0:02:47.4]} 18. Bxd5
{[%clk 0:03:07.1]} 18... Ne5 {[%clk 0:02:48.3]} 19. axb4 {[%clk 0:02:46.2]}
19... Rxd5 {[%clk 0:02:48.7]} 20. Qe2 {[%clk 0:02:33.3]} 20... cxb4 {[%clk
0:02:49]} 21. Bf4 {[%clk 0:02:27.7]} 21... Nd3 {[%clk 0:02:38.8]} 22. Nc3 {[%clk
0:02:05.2]} 22... Qc6 {[%clk 0:02:18.4]} 23. Nxd5 {[%clk 0:02:03.9]} 23... Qxd5
{[%clk 0:02:19.9]} 24. Be3 {[%clk 0:01:50.6]} 24... Bc5 {[%clk 0:02:08.4]} 25.
Ra5 {[%clk 0:01:39.2]} 25... Kb7 {[%clk 0:01:25.7]} 26. Bxc5 {[%clk 0:01:37.3]}
26... Nf4 {[%clk 0:00:46.6]} 27. Rxa7+ {[%clk 0:00:47.9]} 27... Kc8 {[%clk
0:00:47]} 28. Rc7+ {[%clk 0:00:10.5]} 28... Kxc7 {[%clk 0:00:46.6]} 29. Bd6+
{[%clk 0:00:10.8]} 29... Kxd6 {[%clk 0:00:44.2]} 30. Qd1 {[%clk 0:00:10]} 30...
Nh3# {[%clk 0:00:45]} 0-1

[Event "*** Titled Tuesday Blitz"]
[Site "Chess.com"]
[Date "2019.06.04"]
[Round "9"]
[White "JMatias"]
[Black "DivyaDeshmukh23"]
[Result "1-0"]
[WhiteElo "2434"]
[BlackElo "2374"]
[TimeControl "180+2"]
[EndTime "15:06:19 PDT"]
[Termination "JMatias won by resignation"]

1. c4 {[%clk 0:03:01.9]} 1... b6 {[%clk 0:02:58.2]} 2. e4 {[%clk 0:03:01.2]}
2... Bb7 {[%clk 0:02:59.8]} 3. Nc3 {[%clk 0:03:02.5]} 3... e5 {[%clk 0:03:01.1]}
4. g3 {[%clk 0:03:03.5]} 4... Nc6 {[%clk 0:03:01.4]} 5. Bg2 {[%clk 0:03:04.4]}
5... g6 {[%clk 0:03:01.7]} 6. Nge2 {[%clk 0:03:05.4]} 6... Bg7 {[%clk
0:03:01.9]} 7. d3 {[%clk 0:03:04.9]} 7... Nge7 {[%clk 0:03:03.2]} 8. Be3 {[%clk
0:03:03.5]} 8... O-O {[%clk 0:03:04]} 9. Qd2 {[%clk 0:03:04.6]} 9... Nd4 {[%clk
0:03:02.3]} 10. O-O {[%clk 0:03:00.4]} 10... f5 {[%clk 0:03:00]} 11. Bg5 {[%clk
0:02:53.5]} 11... fxe4 {[%clk 0:02:54.9]} 12. dxe4 {[%clk 0:02:49.8]} 12... Qe8
{[%clk 0:02:46.4]} 13. Nxd4 {[%clk 0:02:47.3]} 13... exd4 {[%clk 0:02:47.1]} 14.
Nb5 {[%clk 0:02:47.3]} 14... Qf7 {[%clk 0:02:40.3]} 15. Nxc7 {[%clk 0:02:41]}
15... Rab8 {[%clk 0:02:30.6]} 16. b3 {[%clk 0:02:35.7]} 16... Nc6 {[%clk
0:02:27.9]} 17. Nd5 {[%clk 0:02:33]} 17... Rbe8 {[%clk 0:02:25.7]} 18. Bh6
{[%clk 0:02:24]} 18... Ne5 {[%clk 0:02:16.3]} 19. Bxg7 {[%clk 0:02:23.2]} 19...
Qxg7 {[%clk 0:02:18.2]} 20. f4 {[%clk 0:02:13]} 20... Ng4 {[%clk 0:02:18.3]} 21.
e5 {[%clk 0:01:55]} 21... Kh8 {[%clk 0:02:02.5]} 22. Qxd4 {[%clk 0:01:54.2]}
22... d6 {[%clk 0:02:03.6]} 23. h3 {[%clk 0:01:48.3]} 23... dxe5 {[%clk
0:02:03]} 24. fxe5 {[%clk 0:01:44.7]} 24... Nxe5 {[%clk 0:02:04.9]} 25. Kh1
{[%clk 0:01:38.2]} 25... Rf5 {[%clk 0:01:44.3]} 26. g4 {[%clk 0:01:30.5]} 26...
Rg5 {[%clk 0:01:30.2]} 27. Rae1 {[%clk 0:01:22.5]} 27... h6 {[%clk 0:00:57.8]}
28. Nf6 {[%clk 0:01:14.5]} 28... Bxg2+ {[%clk 0:00:57.4]} 29. Kxg2 {[%clk
0:01:16.4]} 29... Qb7+ {[%clk 0:00:58.8]} 30. Kg3 {[%clk 0:00:49]} 30... Rf8
{[%clk 0:00:44.9]} 31. Rxe5 {[%clk 0:00:43.5]} 31... Qc7 {[%clk 0:00:37.4]} 32.
Nd5 {[%clk 0:00:29.2]} 1-0

[Event "*** Titled Tuesday Blitz"]
[Site "Chess.com"]
[Date "2019.06.04"]
[Round "9"]
[White "guillembaches"]
[Black "albi1999"]
[Result "0-1"]
[WhiteElo "2302"]
[BlackElo "2440"]
[TimeControl "180+2"]
[EndTime "15:06:23 PDT"]
[Termination "albi1999 won on time"]

1. e4 {[%clk 0:03:01.9]} 1... e5 {[%clk 0:03:00.8]} 2. Nf3 {[%clk 0:03:02.7]}
2... Nc6 {[%clk 0:02:59.7]} 3. Nc3 {[%clk 0:03:03.6]} 3... Nf6 {[%clk
0:03:00.6]} 4. d4 {[%clk 0:03:04.2]} 4... exd4 {[%clk 0:03:02.5]} 5. Nxd4 {[%clk
0:03:05.3]} 5... Bb4 {[%clk 0:03:03.6]} 6. Nxc6 {[%clk 0:03:03.5]} 6... bxc6
{[%clk 0:03:05.5]} 7. Bd3 {[%clk 0:03:04.6]} 7... d5 {[%clk 0:03:07.1]} 8. Bd2
{[%clk 0:03:05.6]} 8... O-O {[%clk 0:03:05.3]} 9. O-O {[%clk 0:02:59.7]} 9...
Re8 {[%clk 0:02:49.4]} 10. Nxd5 {[%clk 0:02:40.2]} 10... cxd5 {[%clk 0:02:51.3]}
11. Bxb4 {[%clk 0:02:41]} 11... dxe4 {[%clk 0:02:46.2]} 12. Bb5 {[%clk
0:02:21.3]} 12... Bd7 {[%clk 0:02:44.8]} 13. Bxd7 {[%clk 0:02:21.5]} 13... Qxd7
{[%clk 0:02:46.7]} 14. Qxd7 {[%clk 0:02:13.7]} 14... Nxd7 {[%clk 0:02:48.6]} 15.
Rfd1 {[%clk 0:02:14.3]} 15... Rad8 {[%clk 0:02:41.9]} 16. Kf1 {[%clk 0:02:09.1]}
16... f5 {[%clk 0:02:41.1]} 17. Ke2 {[%clk 0:02:07.2]} 17... Kf7 {[%clk
0:02:42.2]} 18. Rd5 {[%clk 0:02:00.2]} 18... Ne5 {[%clk 0:02:35.9]} 19. Rad1
{[%clk 0:01:52.7]} 19... Rxd5 {[%clk 0:02:14.3]} 20. Rxd5 {[%clk 0:01:53.2]}
20... Ke6 {[%clk 0:02:15.8]} 21. Ra5 {[%clk 0:01:48.8]} 21... Nc6 {[%clk
0:02:13.9]} 22. Ra6 {[%clk 0:01:49.5]} 22... Kd5 {[%clk 0:02:13]} 23. Bc3 {[%clk
0:01:46.3]} 23... g5 {[%clk 0:02:10.3]} 24. b3 {[%clk 0:01:38.1]} 24... f4
{[%clk 0:01:59]} 25. h3 {[%clk 0:01:29.4]} 25... Re6 {[%clk 0:01:57.7]} 26. Ra4
{[%clk 0:01:18.6]} 26... h5 {[%clk 0:01:56.4]} 27. Bb2 {[%clk 0:01:11.9]} 27...
g4 {[%clk 0:01:54.6]} 28. hxg4 {[%clk 0:01:11.7]} 28... hxg4 {[%clk 0:01:56.5]}
29. c4+ {[%clk 0:01:08.8]} 29... Kc5 {[%clk 0:01:55.9]} 30. Ba3+ {[%clk
0:01:08.4]} 30... Kb6 {[%clk 0:01:56.9]} 31. Bb2 {[%clk 0:00:59]} 31... f3+
{[%clk 0:01:52.4]} 32. Kf1 {[%clk 0:00:58.6]} 32... Kc5 {[%clk 0:01:47.5]} 33.
Bc3 {[%clk 0:00:41.7]} 33... Rh6 {[%clk 0:01:42.9]} 34. Kg1 {[%clk 0:00:39]}
34... a5 {[%clk 0:01:14.8]} 35. Bxa5 {[%clk 0:00:34.4]} 35... Nd4 {[%clk
0:01:11.7]} 36. gxf3 {[%clk 0:00:20.6]} 36... exf3 {[%clk 0:01:06.5]} 37. Bb4+
{[%clk 0:00:20]} 37... Kb6 {[%clk 0:01:06.6]} 38. c5+ {[%clk 0:00:21]} 38... Kb7
{[%clk 0:01:03.3]} 0-1